Cogmind - Beta 16.1 @@@ ROGUE MODE // 2026.04.05 @ 12:15:50 Player: Zaros426 Result: Destroyed by EW-D6L(R) with Subdweller Machine Gun Performance ------------- Evolutions (0) 0 Regions Visited (3) 600 Robots Destroyed (32) 160 Value Destroyed (752) 752 Prototype IDs (2) 40 Alien Tech Used (0) 0 Bonus (0) 0 TOTAL SCORE: 1552 Bonus ------- None Cogmind --------- Core Integrity 0/250 Matter 300/300 Energy 10/250 System Corruption 0% Temperature Cool (0) Movement Treading (240) Ox1 Location -10/Subcaves Parts ------- > --- POWER (1) -------- Ion Engine > --- PROPULSION (2) --- Light Treads Light Treads > --- UTILITY (2) ------ High-capacity Storage Unit Improved Targeting Computer > --- WEAPON (2) ------- Light EM Pulse Cannon Light EM Pulse Cannon > --- INVENTORY (20) --- Ion Engine Disposable Heat Sink Large Storage Unit Large Battery (200) High-capacity Matter Pod (200) Seismic Detector ECM Suite ECM Suite Shield Generator Hacking Suite Light EM Pulse Cannon Heavy Assault Rifle Heavy Assault Rifle Battle Rifle Battle Cannon Grenade Launcher Mining Laser Peak State ------------ > --- POWER ------------ Ion Engine > --- PROPULSION ------- Light Treads Light Treads > --- UTILITY ---------- High-capacity Storage Unit Improved Targeting Computer > --- WEAPON ----------- Light EM Pulse Cannon Light EM Pulse Cannon > --- INVENTORY -------- Ion Engine Light Treads Light Treads Disposable Heat Sink Large Storage Unit Large Battery High-capacity Matter Pod Seismic Detector ECM Suite ECM Suite Shield Generator Hacking Suite Light EM Pulse Cannon Light EM Pulse Cannon Heavy Assault Rifle Heavy Assault Rifle Heavy Assault Rifle Heavy Assault Rifle Grenade Launcher Mining Laser [Rating: 13] Favorites ----------- Power Ion Engine Engine Ion Engine Propulsion Light Treads Treads Light Treads Utility Improved Targeting Computer Device Seismic Detector Storage High-capacity Storage Unit Processor Improved Targeting Computer Weapon Light EM Pulse Cannon Energy Gun EM Pulse Gun Energy Cannon Light EM Pulse Cannon Ballistic Gun Assault Rifle Special Weapon Mining Laser Build | -11 -10 -10 -10 ------- Run | Yrd Mat Min Sub Slots Evolved . | . . . . Power . | . . . . Propulsion . | . . . . Utility . | . . . . Weapon . | . . . . Parts Attached 23 | 8 10 1 4 Power 3 | 1 1 . 1 Engine 3 | 1 1 . 1 Core . | . . . . Reactor . | . . . . Propulsion 4 | 2 . . 2 Treads 4 | 2 . . 2 Leg . | . . . . Wheel . | . . . . Hover . | . . . . Flight . | . . . . Utility 5 | 2 3 . . Device 1 | 1 . . . Storage 3 | 1 2 . . Processor 1 | . 1 . . Hackware . | . . . . Protection . | . . . . Artifact . | . . . . Weapon 11 | 3 6 1 1 Energy Gun 3 | 3 . . . Energy Cannon 3 | . 2 . 1 Ballistic Gun 4 | . 4 . . Ballistic Cannon . | . . . . Launcher . | . . . . Special Weapon 1 | . . 1 . Impact Weapon . | . . . . Slashing Weapon . | . . . . Piercing Weapon . | . . . . Special Melee Weapon . | . . . . Unidentified Prototypes . | . . . . Parts Lost 2 | . 1 . 1 Power . | . . . . Propulsion . | . . . . Utility . | . . . . Weapon 2 | . 1 . 1 Highest Loss Streak 1 | . 1 . 1 To Critical Strikes . | . . . . Average Backups 16 | 4 13 20 18 Power 1 | . 1 1 1 Propulsion 1 | 1 1 2 1 Utility 7 | . 6 9 9 Weapon 6 | 1 4 8 7 Tool/Special . | . . . . Unused Backups 18 | . 5 . 13 Power . | . . . . Propulsion 2 | . 2 . . Utility 9 | . 2 . 7 Weapon 7 | . 1 . 6 Tool/Special . | . . . . Average Slot Usage (%) 100 | . 100 100 100 Engine 14 | . 14 14 14 Treads 28 | . 28 28 28 Device 1 | . 5 . . Storage 14 | . 14 14 14 Processor 12 | . 8 14 14 Energy Gun 5 | . 14 . . Energy Cannon 19 | . 6 25 27 Ballistic Gun 2 | . 6 . . Special Weapon 1 | . . 2 . Peak Build Rating 13 | 7 13 13 13 Average Rating 11 | 5 9 12 12 On Entrance 8 | . 7 13 13 Avg Prop Armor Cover (%) 14 | 17 10 . . Naked Turns . | . . . . Heaviest Build 53 | 15 53 53 53 Greatest Support 40 | 20 40 40 40 Greatest Overweight (x) 1 | . 1 1 1 Average Overweight (x) . | . . 1 1 Largest Inventory Capacity 20 | 8 20 20 20 Average Capacity 18 | 7 15 20 20 Most Carried 20 | 8 20 20 20 Average Carried 16 | 4 13 20 18 Final Capacity 20 | 8 20 20 20 Final Carried 20 | 6 20 20 17 Class Distribution -------------------- 100% | Mutant Dominant Class ---------------- Mutant | -10/Materials Mutant | -10/Mines Mutant | -10/Subcaves Resources | -11 -10 -10 -10 ----------- Run | Yrd Mat Min Sub Matter Collected 720 | 280 315 60 65 Remotely . | . . . . Salvage Created 1324 | 55 733 240 296 Parts 69 | 7 44 7 11 Haulers Intercepted 2 | . 2 . . Recyclers Shooed 2 | 1 1 . . Parts Field Recycled . | . . . . Retrieved Matter . | . . . . Parts Self-Destructed 10 | . . . 10 Prevented . | . . . . Parts Restored . | . . . . Kills | -11 -10 -10 -10 ------- Run | Yrd Mat Min Sub Combat Hostiles Destroyed 20 | . 9 6 5 Guns 7 | . 7 . . Cannons 9 | . . 4 5 AOE 2 | . 1 1 . Classes Destroyed 12 | 1 9 1 1 Worker 1 | . 1 . . Builder 1 | . 1 . . Tunneler 3 | 3 . . . Hauler 2 | . 2 . . Recycler 2 | . 2 . . Mechanic 1 | . 1 . . Operator 2 | . 2 . . Watcher 2 | . 2 . . Swarmer 3 | . 3 . . Grunt 10 | . 6 4 . Subdweller 5 | . . . 5 Assembled 2 | . . 2 . Best Kill Streak 5 | 2 5 2 2 Combat Bots Only 3 | . 3 2 2 Max Kills in Single Turn 1 | 1 1 1 1 Gunslinging . | . . . . Exploded 1 | . 1 1 . Melee . | . . . . Uniques/NPCs Destroyed . | . . . . Combat | -11 -10 -10 -10 -------- Run | Yrd Mat Min Sub Hostile Shots Fired 94 | . 46 18 30 Missed 27 | . 12 6 9 Hits 67 | . 34 12 21 Melee 1 | . . 1 . Projectile 66 | . 34 11 21 Critical Strikes 2 | . 1 . 1 Part Disruptions 1 | . . 1 . Damage Taken 1036 | . 407 182 447 Core 251 | . 96 . 155 Absorbed by Shields . | . . . . Core Remaining (%) 100 | 100 . . . Volleys Fired 119 | 10 54 28 27 Largest 2 | 1 2 2 2 Hottest 112 | 50 80 112 112 Shots Fired 208 | 10 108 39 51 Gun 118 | 10 108 . . Cannon 75 | . . 27 48 Launcher . | . . . . Special 15 | . . 12 3 Kinetic 20 | . 20 . . Thermal 25 | 10 . 12 3 Explosive . | . . . . Electromagnetic 163 | . 88 27 48 Robot Hit Streak 19 | 3 8 6 19 Robot Miss Streak 5 | 1 5 3 1 Penetration Max . | . . . . Secondary Targets 1 | . 1 . . Max Gunslinging Chain 1 | . 1 . . Shots Hit Robots 116 | 7 57 20 32 Core Hits 47 | 3 26 7 11 Critical Kills . | . . . . Critical Parts Destroyed . | . . . . Critical Strikes 2 | 1 1 . . Burn 1 | 1 . . . Corrupt 1 | . 1 . . Melee Attacks . | . . . . Impact . | . . . . Slashing . | . . . . Piercing . | . . . . Sneak Attacks . | . . . . Combat Hostiles . | . . . . Follow-up Attacks . | . . . . Damage Inflicted 2291 | 86 1100 489 616 Guns 903 | 86 817 . . Cannons 1060 | . . 444 616 Explosions 328 | . 283 45 . Melee . | . . . . Ramming . | . . . . Kinetic 146 | . 146 . . Thermal 414 | 86 283 45 . Explosive . | . . . . Electromagnetic 1731 | . 671 444 616 Impact . | . . . . Slashing . | . . . . Piercing . | . . . . Highest Corruption . | . . . . Average Corruption . | . . . . Corruption Purged . | . . . . Corruption Blocked . | . . . . Overload Shots . | . . . . Overflow Damage 38 | . 19 19 . Projectiles 19 | . . 19 . Explosions 19 | . 19 . . Melee . | . . . . Knockbacks . | . . . . Impact . | . . . . Kinetic . | . . . . Secondary . | . . . . Self-Inflicted Damage . | . . . . Shots . | . . . . Rammed . | . . . . Targets Rammed . | . . . . Kicked . | . . . . Crushed . | . . . . Highest Temperature 268 | 50 268 237 3 Average Temperature 70 | 20 74 76 3 Received Heat Transfer 386 | . 204 140 42 Siege Activations . | . . . . Martial Activations . | . . . . Shielding Activations . | . . . . Robots Disrupted . | . . . . Combat Hostiles . | . . . . Robots Corrupted 2 | . 1 1 . Combat Hostiles 2 | . 1 1 . Parts Fried 10 | . 3 2 5 Impact Corruptions . | . . . . Robots Melted . | . . . . Combat Hostiles . | . . . . Parts Melted 1 | . 1 . . Heat Transferred 733 | 333 400 . . Parts Sabotaged . | . . . . Parts Stolen . | . . . . Parts Stripped . | . . . . Power Chain Reactions 8 | . 7 1 . Alert | -11 -10 -10 -10 ------- Run | Yrd Mat Min Sub Maximum Alert Level . | . . . . Low Security (%) 100 | 100 100 100 . Level 1 . | . . . . Level 2 . | . . . . Level 3 . | . . . . Level 4 . | . . . . Level 5 . | . . . . High Security . | . . . . Max Security . | . . . . Peak Influence 97 | 5 97 85 . Initial . | . . . . Average 15 | . 21 10 . Influence Increases 504 | 15 339 150 . Destroy 0b10 Robot/C 260 | . 180 80 . Destroy 0b10 Robot/NC 70 | 15 55 . . Destroy Leader 68 | . 48 20 . Successful Hack 15 | . 15 . . Disable Machine 15 | . 15 . . Destroy Structure 31 | . 26 5 . Lose Combat Pursuer 45 | . . 45 . Influence Decreases 504 | 15 339 150 . Time Decay 497 | 15 332 150 . Lost Part 7 | . 7 . . Squads Dispatched 2 | . 2 . . Investigation . | . . . . Extermination . | . . . . Reinforcement 2 | . 2 . . Assault . | . . . . Garrison . | . . . . Intercept . | . . . . Searches Triggered . | . . . . Construction Impeded . | . . . . Haulers Reinforced . | . . . . Active Scanning Responses . | . . . . Cargo Convoy Interrupts . | . . . . Stealth | -11 -10 -10 -10 --------- Run | Yrd Mat Min Sub Distress Signals 2 | . 1 1 . Communications Jammed . | . . . . Distress Signals . | . . . . Times Spotted 35 | . 17 10 8 Peak Tracking Total 3 | . 3 2 3 Tactical Retreats 3 | . . 2 1 Traps | -11 -10 -10 -10 ------- Run | Yrd Mat Min Sub Traps Triggered . | . . . . Indirectly . | . . . . Trap Hack Attempts . | . . . . Triggered . | . . . . Disarmed . | . . . . Reprogrammed . | . . . . Reused . | . . . . Traps Extracted . | . . . . Installed . | . . . . Triggered . | . . . . Machines | -11 -10 -10 -10 ---------- Run | Yrd Mat Min Sub Machines Disabled 1 | . 1 . . Max in Single Turn 1 | . 1 . . Machines Repaired . | . . . . Machines Dismantled . | . . . . Machines Sabotaged . | . . . . Overloaded Fab Kills . | . . . . Hacking | -11 -10 -10 -10 --------- Run | Yrd Mat Min Sub Machines Accessed 7 | . 7 . . Terminals 6 | . 6 . . Fabricators . | . . . . Repair Stations 1 | . 1 . . Recycling Units . | . . . . Scanalyzers . | . . . . Garrison Access . | . . . . Total Hacks 26 | . 26 . . Successful 12 | . 12 . . Failed 13 | . 13 . . Catastrophic 2 | . 2 . . Database Lockouts 1 | . 1 . . Manual 19 | . 19 . . Terminals 25 | . 25 . . Fabricators . | . . . . Repair Stations 1 | . 1 . . Recycling Units . | . . . . Scanalyzers . | . . . . Garrison Access . | . . . . Terminal Hacks 6 | . 6 . . Part Schematic 2 | . 2 . . Prototype ID Bank 1 | . 1 . . Locate Traps 1 | . 1 . . Patrol Status 1 | . 1 . . Zone Layout 1 | . 1 . . Fabricator Hacks . | . . . . Repair Station Hacks . | . . . . Recycling Unit Hacks . | . . . . Scanalyzer . | . . . . Garrison Access Hacks . | . . . . Unauthorized Hacks 6 | . 6 . . Terminals 6 | . 6 . . Botnet 1 | . 1 . . Skim 5 | . 5 . . Fabricators . | . . . . Repair Stations . | . . . . Recycling Units . | . . . . Scanalyzers . | . . . . Garrison Access . | . . . . Data Cores Recovered . | . . . . Used . | . . . . Hacking Detections 6 | . 6 . . Full Trace Events . | . . . . Feedback Events . | . . . . Feedback Blocked . | . . . . Robot Schematics Acquired . | . . . . Robots Built . | . . . . Authchips . | . . . . Time . | . . . . Total Robot Build Rating . | . . . . Part Schematics Acquired 2 | . 2 . . Parts Built . | . . . . Authchips . | . . . . Time . | . . . . Total Part Build Rating . | . . . . Part Studies Acquired . | . . . . Parts Repaired . | . . . . Time . | . . . . Parts Recycled . | . . . . Recycled Matter . | . . . . Retrieved Matter . | . . . . Retrieved Components . | . . . . Parts Scanalyzed . | . . . . Part Schematics Acquired . | . . . . Parts Damaged . | . . . . Bothacking | -11 -10 -10 -10 ------------ Run | Yrd Mat Min Sub Used RIF Installer . | . . . . Robots Hacked . | . . . . Non-combat . | . . . . Combat . | . . . . Robot Hacks Applied . | . . . . Relay Couplers Released . | . . . . Fabnet Peak Effective % . | . . . . Robots Rewired . | . . . . Allies Hacked . | . . . . Hacks Repelled . | . . . . Allies | -11 -10 -10 -10 -------- Run | Yrd Mat Min Sub Total Allies . | . . . . Largest Group . | . . . . Highest-Rated Group . | . . . . Highest-Rated Ally . | . . . . Total Orders . | . . . . Ally Attacks . | . . . . Total Damage . | . . . . Kills . | . . . . Allies Corrupted . | . . . . Allies Melted . | . . . . Intel | -11 -10 -10 -10 ------- Run | Yrd Mat Min Sub Active Infowar (turns) 475 | 25 450 . . Seismic 475 | 25 450 . . Robot Analysis Total . | . . . . Derelict Logs Recovered 2 | . . 2 . Drone Launches . | . . . . Drone Recoveries . | . . . . Exploration | -11 -10 -10 -10 ------------- Run | Yrd Mat Min Sub Turns Passed 3675 | 135 1234 1127 1179 Spaces Moved 1458 | 73 558 389 438 Core 23 | 23 . . . Treads 1435 | 50 558 389 438 Legs . | . . . . Wheels . | . . . . Hover . | . . . . Flight . | . . . . Fastest Speed 50 | 50 160 240 240 Average Speed 210 | 125 178 240 240 Slowest Speed 240 | 160 240 240 240 Overloaded Moves . | . . . . Propulsion Burnouts . | . . . . Robots Hopped . | . . . . Potential Cave-ins . | . . . . Cave-ins Triggered . | . . . . Exploration Rate (%) 49 | 4 94 77 22 Regions Visited 3 Branch Regions 2 Pre-discovered Areas 1 | . . 1 . Known Exits Taken 2 | . 1 1 . Unknown Exits Taken 1 | 1 . . . Scrap Searched 2 | . . 2 . Spaces Dug . | . . . . Terrain Destroyed 28 | . 23 5 . Melee . | . . . . Projectile . | . . . . AOE 28 | . 23 5 . Terrain Rammed . | . . . . Walls Destroyed . | . . . . Machines Disabled . | . . . . Actions | -11 -10 -10 -10 --------- Run | Yrd Mat Min Sub Total 1829 | 106 694 519 510 Wait 173 | . 39 101 33 Move 1455 | 72 557 388 438 Hop . | . . . . Pick Up 38 | 13 23 . 2 Fast Attach 2 | 2 . . . Attach 8 | 5 2 . 1 Detach . | . . . . Swap 17 | 2 8 2 5 Drop 17 | 2 11 . 4 Fire 119 | 10 54 28 27 Melee . | . . . . Ram . | . . . . Kick . | . . . . Crush . | . . . . Escape Stasis . | . . . . Rewire . | . . . . Trap . | . . . . Miscellaneous . | . . . . Route ------- -11/Scrapyard -10/Materials (discovered 6 exits: *Mat x3 / *Min x2 / Sub) -10/Mines (discovered 3 exits: *Mat / *Exi / *Sub) -10/Subcaves History --------- Turn | Location | Event 5 | -11/Scrapyard | Discovered new exit (range 15) 136 | -11/Scrapyard | Entered Materials 310 | -10/Materials | Build established: Mutant 310 | -10/Materials | Discovered new exit (range 14) 383 | -10/Materials | Discovered new exit (range 6) 517 | -10/Materials | Discovered new exit (range 10) 767 | -10/Materials | Discovered new exit (range 5) 910 | -10/Materials | Central database locked down 982 | -10/Materials | Identified exit to Subcaves 982 | -10/Materials | Identified exit to Materials 1130 | -10/Materials | Learned location of 2 exits from Mines 1176 | -10/Materials | Identified exit to Mines 1205 | -10/Materials | Learned location of 2 exits from Materials 1243 | -10/Materials | Learned 2 Materials zone layouts 1370 | -10/Materials | Entered Mines 1371 | -10/Mines | Identified exit to Exiles 1422 | -10/Mines | Learned location of 1 exit from Materials 1743 | -10/Mines | Received a Rocket Launcher from a helpful Derelict 1873 | -10/Mines | Discovered exit to Subcaves (range 5) 2061 | -10/Mines | Learned location of Storage (-9) 2135 | -10/Mines | Excavation squad dispatched 2135 | -10/Mines | A large section of the Mines collapsed 2299 | -10/Mines | Learned Materials emergency access door positions 2330 | -10/Mines | Deemed a non-threat by the Exiles lab entrance 2497 | -10/Mines | Entered Subcaves 2771 | -10/Subcaves | A swath of the cavern ceiling suddenly collapsed 2834 | -10/Subcaves | Shifting Twisted Machinery released Flamer 3015 | -10/Subcaves | Core integrity fell below 50% 3059 | -10/Subcaves | Core integrity fell below 20% 3637 | -10/Subcaves | A Subdweller sparked back to life 3676 | -10/Subcaves | Destroyed by EW-D6L(R) with Subdweller Machine Gun Last Messages --------------- Flamer falls loose from the Twisted Machinery. 03004_ Lgt. EM Pulse Cannon destroyed. 03017_ Sub. Optics fried. 03017_ Sub. Laser fried. 03017_ Sub. Power Source fried. 03017_ 88-0HS(R) destroyed. 03026_ VG-MCZ(R) misfires. 03033_ VG-MCZ(R) affixes Scrap Shield Fragment to Scrap Shield. 03061_ VG-MCZ(R) destroyed. 03066_ Acquired 45 matter. 03090_ Dropped Lgt. Treads. 03092_ Acquired 10 matter. 03093_ Dropped Lgt. Treads. 03109_ Subatomizers dissect the Lgt. Treads, destroying it. 03637_ MF-NHQ(R) creaks and sparks as it begins to move. 03649_ MF-NHQ(R) misfires. 03650_ MF-NHQ(R) destroyed. 03653_ Subatomizers dissect the Corrupted Disposable Heat Sink. 03670_ EW-D6L(R) affixes Scrap Shield Fragment to Scrap Shield. 03675_ MV-PR0(R) misfires. Map ----- +----------------------------------------------------+ | ????????????????????# ###### #??### #?????? | | ????????????????????# " ## #### #?????? | | ????????????????????# "# " ## #?????? | | ????????????????????# ""#"#"## ##?????? | | ????????????????????####"# #### ##??????? | | ???????????????????????##""##?#### ###???????? | | ???????????????????????##"#"###??## ##?????????? | | ???????????????????????#"#""""#???## ##??????????? | | ??????????????????????###""""###???###???????????? | | ?????????????????????#"#"#"#"###?????????????????? | | ?????????????????????##""""""##????###???????????? | | ??????????????????????#"#"""##????## #???????????? | | ??????????????????????# #####?????# #???????????? | | ??????????????????????## ""#??????# ##??????????? | | ??????????????????????## ######"### ##?????????? | | ??????????????????????# ""### " # #?????????? | | ??????????????????????# ## " & "# #?????????? | | ??????????????????????# " ##?????????? | | ??????????????????????### ## "& ##??????????? | | ????????????????????????#### # #???????????? | | ???????????????????????## ## #???????????? | | ???????????????????????# !& #???????????? | | ???????????????????????##R## #???????????? | | ????????????????????????#*##### ##???????????? | | ????????????????????????# ##??## #????????????? | | ???????????????????????##@ #???# | #????????????? | | ??????????????????????## #######" ##???????????? | | ??????????????????????# R ###" #???????????? | | ??????????????????????## ##???????????? | | ???????????????????????##### #"" #????????????? | | ???????????????????????????# #######????????????? | | ??????????????????????????## ##??????????????????? | | ??????????????????????????# #???????????????????? | | ??????????????????????????# ##?#########????????? | | ??????####?????????##????## ### ## #????????? | | ??????# ##??????##"#????# ##???????? | | ??????# ##????##""##???# " &%& #???????? | | ??????# ####?# #???### #### """## #???????? | | #####??# ### #????# #??####### #???????? | | ##?# ## ##????# #????# ## #???????? | | ### ### ####### ###### # ##???????? | | # ## ## ## #???????? | | ## ### #???????? | | ?### ### ##### #???????? | | #### ##?## ##???## # # # #???????? | | ## ##??## ##????# ### #### % #???????? | | ##### ##????# ### ##??# = #???????? | | ## ####?# ## ##??##" ##???????? | | ## ### ## ### ### #####" ##???????? | | #### ### ### # "##" ##??????? | +----------------------------------------------------+ Best States ------------- Heat Dissipation 25 Energy Generation 10 Energy Capacity 250 Matter Stores 300 Matter Capacity 300 Sight Range 16 Terrain Scan Density 10 Evasion (%) 50 Targeting Accuracy 6 Recoil Reduction 2 Item Schematics ----------------- Hcp. Storage Unit | -10/Materials | Hacked Huge Storage Unit | -10/Materials | Hacked Robot Schematics ------------------ None Fabricated ------------ Nothing Repaired ---------- Nothing Studied --------- None Alien Tech Used ----------------- None Achievements -------------- None Challenges ------------ None Game ------ Seed GaussArmorJetlance Manual? 0 Play Time 00:22:39 Cumulative 83.6 hours Start 2026.04.05 @ 11:55:02 End 2026.04.05 @ 12:15:50 Sessions 1 Manual Loads 0 Difficulty Rogue Special Mode None Game No. 39 Rogue 39 Adventurer 0 Explorer 0 Win Type - Total 1 Types 1/0/0/0/0/0/0/0/0/0 Lore% 55 Gallery% 57 Achievement% 52 Wizard Run 0 Options --------- Layout 0 ASCII 0 Keyboard 0 Movement Mouse Keybinds 0 Fullscreen 1 Font 24/Smallcaps Map View 183x50 Zoom Use 0% Tactical HUD 1 Map Filters NONE Filters NONE Steam 1 RUN: 7ce3f4f0-1764-4841-ad06-9f9dc4a4ed15